bitfinex/quotes_SOLUSD_20260203
["timestamp","ask_amount","ask_price","bid_price","bid_amount"]
[1770145203419,33.23296935,97.088,97.001,4.49999999]
[1770145203620,33.13267654,97.087,97.001,4.49999999]
[1770145203833,9.29557532,97.06,97.011,4.49999999]
[1770145204019,9.29557532,97.03,96.981,4.49999999]
[1770145204224,9.29557532,97.09,96.98,4.49999999]
[1770145204225,9.29557532,97.02,96.98,4.49999999]
[1770145204533,9.29557532,97.02,96.97,9.29557532]
[1770145204534,9.29557532,97.02,96.982,4.49999999]
[1770145205332,37.95557532,97.03,96.982,4.49999999]
[1770145205721,37.95557532,97.03,96.98,9.29557532]
[1770145205722,9.29557532,97.0,96.969,4.49999999]
[1770145205918,9.29557532,96.99,96.961,4.49999999]
[1770145206131,9.29557532,97.0,96.961,4.49999999]
[1770145206332,9.29557532,97.0,96.963,4.49999999]
[1770145206723,9.29557532,97.01,96.963,4.49999999]
[1770145206918,9.29557532,97.0,96.963,4.49999999]
[1770145207123,10.78317569,97.047,96.972,4.49999999]
[1770145207334,5.36086188,97.076,96.991,4.49999999]
[1770145207642,9.29557532,97.0,96.952,4.49999999]
[1770145207938,9.29557532,96.99,96.955,4.49999999]
[1770145208137,28.66,97.0,96.962,4.49999999]
[1770145208347,28.66,97.0,96.963,10.31321225]
[1770145208637,9.29557532,97.01,96.964,4.49999999]
[1770145209019,4.27527085,97.036,96.964,4.49999999]
[1770145209217,9.29557532,97.0,96.964,4.49999999]
[1770145209517,28.66,97.049,96.971,4.49999999]
[1770145209712,9.29557532,97.01,96.971,4.49999999]
[1770145209931,9.29557532,96.99,96.963,10.31321225]
[1770145210132,9.29557532,97.04,96.981,4.49999999]
[1770145210343,5.36086188,97.088,96.963,87.66230417]
[1770145210344,5.36086188,97.088,97.021,4.49999999]
[1770145210541,9.29557532,97.07,97.021,4.49999999]
[1770145210719,9.29557532,97.04,96.998,25.77367475]
[1770145210921,9.29557532,97.09,97.0,10.30918925]
[1770145210922,9.29557532,97.03,97.0,10.30918925]
[1770145211146,9.29557532,97.03,96.98,9.29557532]
[1770145211147,9.29557532,97.04,97.001,4.49999999]
[1770145211322,28.66,97.046,97.001,4.49999999]
[1770145211530,28.66,97.046,97.012,4.49999999]
[1770145212420,28.66,97.046,97.013,10.30789687]
[1770145213139,9.29557532,97.03,97.002,4.49999999]
[1770145213347,9.29557532,97.04,97.007,4.49999999]
[1770145213645,4.27527085,97.088,97.002,4.49999999]
[1770145213841,34.05563105,97.098,97.014,4.49999999]
[1770145213842,9.29557532,97.05,97.014,4.49999999]
[1770145214040,28.66,97.07,97.014,4.49999999]
[1770145214242,9.29557532,97.06,97.014,4.49999999]
[1770145214444,37.94965891,97.07,97.021,4.49999999]
[1770145214629,9.28965891,97.09,97.041,4.49999999]
[1770145214828,9.28965891,97.08,97.041,4.49999999]
[1770145215133,9.28965891,97.06,97.021,4.49999999]
[1770145215640,9.28965891,97.05,97.021,4.49999999]
[1770145216230,9.28965891,97.06,97.021,4.49999999]
[1770145216440,9.28965891,97.06,97.023,4.49999999]
[1770145216747,9.28965891,97.07,97.023,4.49999999]
[1770145217046,9.28965891,97.08,97.031,4.49999999]
[1770145217248,9.28965891,97.09,97.031,4.49999999]
[1770145217454,34.05563105,97.098,97.041,4.49999999]
[1770145217622,9.28965891,97.09,97.051,4.49999999]
[1770145218037,9.28965891,97.08,97.051,4.49999999]
[1770145218237,9.28965891,97.09,97.051,4.49999999]
[1770145218444,9.28965891,97.09,97.053,4.49999999]
[1770145218640,9.28965891,97.08,97.053,4.49999999]
[1770145218843,9.28965891,97.09,97.053,4.49999999]
[1770145219142,9.28965891,97.08,97.053,4.49999999]
[1770145219344,28.66,97.079,97.029,4.49999999]
[1770145219539,28.66,97.079,97.052,10.30375468]
[1770145219847,28.66,97.079,97.053,4.49999999]
[1770145220030,9.28965891,97.09,97.053,4.49999999]
[1770145220235,9.28965891,97.08,97.053,4.49999999]
[1770145220746,9.28965891,97.08,97.054,10.30354235]
[1770145221044,9.28965891,97.09,97.055,4.4999992]
[1770145221653,9.28965891,97.09,97.054,10.30354235]
[1770145221654,9.28965891,97.13,97.081,4.4999992]
[1770145221947,4.45500078,97.139,97.09,9.28965891]
[1770145222446,9.28965891,97.13,97.07,9.28965891]
[1770145222631,9.28965891,97.13,97.071,36.05608265]
[1770145222833,9.28965891,97.13,97.08,9.28965891]
[1770145223146,9.28965891,97.12,97.071,36.05608265]
[1770145223542,9.28965891,97.11,97.071,36.05608265]
[1770145223844,9.28965891,97.11,97.072,4.33506184]
[1770145224248,4.45500078,97.129,97.072,4.33506184]
[1770145224449,9.28965891,97.11,97.072,4.33506184]
[1770145224642,9.28965891,97.12,97.074,4.33506184]
[1770145224846,0.2,97.14,97.073,36.05533978]
[1770145224847,9.28965891,97.13,97.081,4.33506184]
[1770145225030,0.2,97.14,97.073,87.56296805]
[1770145225031,9.48965891,97.14,97.101,4.33506184]
[1770145225231,0.2,97.14,97.101,4.33506184]
[1770145225634,0.2,97.14,97.11,9.28965891]
[1770145225835,9.48965891,97.14,97.111,4.33506184]
[1770145226032,9.28965891,97.12,97.086,28.64]
[1770145226245,9.28965891,97.11,97.081,4.33506184]
[1770145226449,9.28965891,97.09,97.073,10.30152565]
[1770145226952,9.28965891,97.09,97.069,4.33506184]
[1770145227131,9.28965891,97.08,97.067,10.30206202]
[1770145227330,9.28965891,97.08,97.062,10.30268214]
[1770145227532,9.28965891,97.07,97.048,10.30415063]
[1770145227730,9.28965891,97.07,97.032,4.33506184]
[1770145227951,4.45500078,97.083,97.008,28.64]
[1770145227952,4.45500078,97.083,97.034,4.33506184]
[1770145228156,9.28965891,97.07,97.034,4.33506184]
[1770145228357,9.28965891,97.06,97.034,4.33506184]
[1770145228533,4.45500078,97.083,97.034,4.33506184]
[1770145228739,9.28965891,97.06,97.035,10.30555984]
[1770145228934,4.45500078,97.083,97.008,28.64]
[1770145228935,4.45500078,97.072,97.03,10.30603144]
[1770145229141,9.28965891,97.06,97.034,10.30558591]
[1770145229637,4.45500078,97.072,97.034,10.30558591]
[1770145230155,9.28965891,97.06,97.034,10.30558591]
[1770145230654,9.28965891,97.04,96.991,4.33506184]
[1770145230855,9.28965891,97.03,96.993,4.33506184]
[1770145231162,4.27527085,97.087,96.997,4.33506184]
[1770145231163,9.28965891,97.02,96.997,4.33506184]
[1770145231360,4.27527085,97.087,97.011,4.33506184]
[1770145231361,4.45500078,97.086,97.011,4.33506184]
[1770145231563,9.28965891,97.05,97.011,4.33506184]
[1770145231953,9.28965891,97.06,97.011,4.33506184]
[1770145232766,9.28965891,97.06,97.013,4.33506184]
[1770145232953,9.28965891,97.05,97.013,4.33506184]
[1770145233955,4.45500078,97.066,97.013,4.33506184]
[1770145234151,172.7217813,97.806,97.021,4.33506184]
[1770145234152,9.28965891,97.07,97.021,4.33506184]
[1770145234470,9.28965891,97.07,97.02,9.28965891]
[1770145234471,9.28965891,97.1,97.051,4.33506184]
[1770145234760,9.28965891,97.1,97.062,10.30269312]
[1770145234962,9.28965891,97.11,97.063,4.33506184]
[1770145235146,9.28965891,97.09,97.063,4.33506184]
[1770145235340,4.45500078,97.109,97.063,4.33506184]
[1770145235859,9.28965891,97.11,97.063,4.33506184]
[1770145236963,28.64,97.151,97.081,4.33506184]
[1770145236964,9.28965891,97.13,97.081,4.33506184]
[1770145238047,13.74465969,97.13,97.081,4.33506184]
[1770145238269,4.45500078,97.13,97.081,4.33506184]
[1770145238450,4.45500078,97.149,97.11,9.28965891]
[1770145238655,9.38965891,97.16,97.111,4.33506184]
[1770145238866,9.48965891,97.14,97.112,10.29738858]
[1770145239064,9.48965891,97.14,97.081,28.64]
[1770145239065,9.28965891,97.13,97.11,10.29754638]
[1770145239578,9.28965891,97.13,97.105,10.29811569]
[1770145239780,9.28965891,97.13,97.11,10.29759782]
[1770145239970,9.48965891,97.14,97.112,10.29738858]
[1770145240169,0.2,97.14,97.113,4.33506184]
[1770145240670,1e-08,97.14,97.113,4.33506184]
[1770145240871,4.45500078,97.179,97.133,4.33506184]
[1770145241071,4.45500078,97.179,97.132,36.03343902]
[1770145241072,9.28965891,97.18,97.14,9.28965891]
[1770145241269,9.28965891,97.19,97.141,4.33506184]
[1770145241580,9.28965891,97.17,97.133,4.33506184]
[1770145241788,0.1,97.2,97.15,9.28965891]
[1770145242081,0.1,97.2,97.161,4.33506184]
[1770145242262,9.28965891,97.18,97.138,4.33506184]
[1770145242684,9.28965891,97.18,97.132,36.03343902]
[1770145242685,15.23817647,97.239,97.172,4.33506184]
[1770145242873,0.1,97.24,97.211,4.33506184]
[1770145243377,0.1,97.25,97.231,4.33506184]
[1770145243577,4.48538986,97.293,97.241,4.33506184]
[1770145244281,9.28965891,97.26,97.228,4.33506184]
[1770145244466,4.48538986,97.279,97.231,4.33506184]
[1770145244967,4.48538986,97.279,97.16,9.28965891]
[1770145244968,9.28965891,97.24,97.205,4.33506184]
[1770145245184,9.28965891,97.23,97.205,4.33506184]
[1770145245357,9.28965891,97.22,97.195,10.28858157]
[1770145245564,9.28965891,97.25,97.209,4.33506184]
[1770145245784,4.48538986,97.263,97.209,4.33506184]
[1770145245964,9.28965891,97.22,97.194,4.33506184]
[1770145246668,9.28965891,97.23,97.194,4.33506184]
[1770145246979,9.28965891,97.23,97.163,28.62]
[1770145246980,4.48538986,97.199,97.174,70.33018414]
[1770145247185,9.28965891,97.18,97.14,4.33506184]
[1770145247385,9.28965891,97.17,97.142,4.33506184]
[1770145247581,9.28965891,97.18,97.142,4.33506184]
[1770145248661,9.28965891,97.18,97.144,4.33506184]
[1770145248885,9.28965891,97.19,97.144,4.33506184]
[1770145249066,9.28965891,97.19,97.151,4.33506184]
[1770145249265,9.28965891,97.2,97.161,4.33506184]
[1770145249782,9.28965891,97.2,97.15,9.28965891]
[1770145249783,9.28965891,97.18,97.148,4.33506184]
[1770145250172,9.28965891,97.23,97.148,4.33506184]
[1770145250173,9.28965891,97.16,97.148,4.33506184]
[1770145250568,9.28965891,97.16,97.11,37.90965891]
[1770145250775,9.28965891,97.14,97.127,38.66039614]
[1770145251279,9.28965891,97.14,97.127,36.3185672]
[1770145251486,5.44836744,97.189,97.127,36.3185672]
[1770145251487,9.28965891,97.16,97.128,10.29569228]
[1770145251682,9.28965891,97.15,97.127,36.3185672]
[1770145251878,9.28965891,97.15,97.128,10.29569228]
[1770145252080,9.28965891,97.16,97.128,10.29569228]
[1770145252276,9.28965891,97.16,97.127,36.3185672]
[1770145252277,9.28965891,97.15,97.127,36.3185672]
[1770145252487,9.28965891,97.14,97.127,36.02190569]
[1770145252785,9.28965891,97.14,97.09,9.28965891]
[1770145252786,9.28965891,97.14,97.103,4.49348134]
[1770145252984,9.28965891,97.13,97.106,4.49348134]
[1770145253172,9.28965891,97.13,97.11,10.29751643]
[1770145253369,9.28965891,97.14,97.106,4.49348134]
[1770145253579,9.28965891,97.14,97.072,41.20633303]
[1770145253580,9.28965891,97.12,97.091,4.49348134]
[1770145253760,9.28965891,97.11,97.079,4.3532494]
[1770145253964,9.28965891,97.12,97.092,10.29950974]
[1770145254285,4.14684106,97.145,97.093,4.3532494]
[1770145254468,9.28965891,97.13,97.093,4.3532494]
[1770145254670,9.28965891,97.12,97.081,4.3532494]
[1770145255070,9.28965891,97.1,97.054,4.3532494]
[1770145255279,9.28965891,97.09,97.056,10.30328849]
[1770145255786,9.28965891,97.09,97.056,14.65653789]
[1770145256089,9.28965891,97.09,97.017,4.27527085]
[1770145256090,9.28965891,97.08,97.034,4.3532494]
[1770145256274,9.28965891,97.08,97.041,4.3532494]
[1770145256477,9.28965891,97.08,97.054,10.30354048]
[1770145256678,9.28965891,97.09,97.043,4.3532494]
[1770145256989,9.28965891,97.08,97.043,4.3532494]
[1770145257182,4.14684106,97.099,97.043,4.3532494]
[1770145257183,9.28965891,97.09,97.043,4.3532494]
[1770145257582,4.14684106,97.079,97.029,4.3532494]
[1770145257788,9.28965891,97.06,97.036,10.30539249]
[1770145257968,9.28965891,97.06,97.029,4.3532494]
[1770145258568,4.14684106,97.079,97.036,10.3054458]
[1770145258764,9.28965891,97.07,97.029,14.65935102]
[1770145258990,9.28965891,97.06,97.034,10.30566605]
[1770145259196,9.28965891,97.07,97.034,10.30566605]
[1770145259771,9.28965891,97.07,97.035,4.3532494]
[1770145259972,4.14684106,97.079,97.035,4.3532494]
[1770145260173,9.28965891,97.07,97.035,4.3532494]
[1770145260368,4.14684106,97.079,97.035,4.3532494]
[1770145260675,28.62,97.137,97.05,9.28965891]
[1770145260676,4.14684106,97.099,97.05,9.28965891]
[1770145260997,4.14684106,97.089,97.056,10.30331925]
[1770145261211,4.27527085,97.121,97.033,35.22283329]
[1770145261212,9.28965891,97.07,97.033,39.57608269]
[1770145261418,4.14684106,97.069,97.033,6.60283329]
[1770145261582,9.28965891,97.05,97.021,10.30697298]
[1770145261894,9.28965891,97.09,96.991,4.3532494]
[1770145261895,9.28965891,97.03,96.991,4.3532494]
[1770145262281,131.23243702,97.089,97.003,4.3532494]
[1770145262282,9.28965891,97.05,97.003,4.3532494]
[1770145262481,9.28965891,97.05,97.016,10.30754424]
[1770145262689,4.14684106,97.049,97.004,10.30885324]
[1770145263008,4.14684106,97.039,97.003,10.30894422]
[1770145263208,4.14684106,97.039,96.98,28.62]
[1770145263209,4.14684106,97.021,96.976,4.3532494]
[1770145263387,9.28965891,97.01,96.976,4.3532494]
[1770145263707,9.28965891,97.01,96.989,10.31042785]
[1770145264285,4.14684106,96.999,96.96,0.2]
[1770145264493,9.28965891,96.98,96.96,0.2]
[1770145264912,9.28965891,96.97,96.962,6.55097466]
[1770145265089,9.28965891,96.97,96.96,0.2]
[1770145265090,13.39503155,96.98,96.96,0.2]
[1770145265286,4.10537264,96.98,96.95,9.38965891]
[1770145265586,129.8713677,97.052,96.971,4.49999999]
[1770145265587,4.27527085,97.017,96.971,4.49999999]
[1770145265790,4.27527085,97.017,96.98,9.28965891]
[1770145265987,4.27527085,97.017,96.963,36.09624289]
[1770145265988,129.8713677,97.052,97.01,9.28965891]
[1770145266189,4.27527085,97.049,96.991,4.49999999]
[1770145266388,129.8713677,97.052,96.991,4.49999999]
[1770145266389,9.28965891,97.05,97.01,9.28965891]
[1770145266816,129.8713677,97.052,97.03,13.7896589]
[1770145267185,77.06696145,97.052,97.04,9.28965891]
[1770145267386,9.28965891,97.05,97.017,4.49999999]
[1770145267585,9.28965891,97.03,96.981,4.49999999]
[1770145268013,4.27527085,97.047,96.955,28.64]
[1770145268014,9.28965891,97.04,97.001,4.49999999]
[1770145268211,4.27527085,97.047,96.968,41.250579]
[1770145268212,118.88332917,97.051,97.02,13.7896589]
[1770145268405,118.88332917,97.051,97.021,4.49999999]
[1770145268595,118.88332917,97.051,97.03,9.28965891]
[1770145268791,118.88332917,97.051,97.04,9.28965891]
[1770145268987,118.88332917,97.051,97.041,10.30492266]
[1770145269190,4.27527085,97.077,97.041,10.30492266]
[1770145269409,9.28965891,97.06,97.036,4.49999999]
[1770145269710,9.28965891,97.07,97.036,4.49999999]
[1770145269916,4.27527085,97.077,97.041,10.30492266]
[1770145270216,9.28965891,97.09,97.05,13.7896589]
[1770145270420,4.27527085,97.11,97.042,4.49999999]
[1770145270608,4.27527085,97.11,97.051,4.49999999]
[1770145270921,9.28965891,97.09,97.052,10.30375468]
[1770145271091,81.55575182,97.112,97.071,4.49999999]
[1770145271292,81.55575182,97.112,97.09,13.7896589]
[1770145271591,9.28965891,97.14,97.101,4.49999999]
[1770145271823,9.28965891,97.12,97.081,4.49999999]
[1770145272199,4.27527085,97.157,97.1,9.28965891]
[1770145272503,9.28965891,97.13,97.091,4.49999999]
[1770145272698,9.28965891,97.11,97.091,4.49999999]
[1770145272915,9.28965891,97.12,97.092,10.29950974]
[1770145273117,9.28965891,97.12,97.091,4.49999999]
[1770145273426,9.28965891,97.12,97.093,4.49999999]
[1770145274510,9.28965891,97.1,97.078,10.30092377]
[1770145274716,9.28965891,97.1,97.059,28.64]
[1770145274717,9.28965891,97.11,97.08,4.49999999]
[1770145274920,9.28965891,97.11,97.05,41.21546027]
[1770145274921,9.38965891,97.23,97.103,4.49999999]
[1770145275216,9.28965891,97.18,97.131,4.49999999]
[1770145275420,9.28965891,97.2,97.151,4.49999999]
[1770145275610,9.28965891,97.19,97.161,4.49999999]
[1770145275813,9.38965891,97.23,97.136,28.64]
[1770145275814,9.28965891,97.18,97.137,4.49999999]
[1770145276014,9.28965891,97.17,97.137,4.49999999]
[1770145276500,9.26895703,97.17,97.137,4.49999999]
[1770145276700,9.26895703,97.16,97.137,4.49999999]
[1770145277119,4.27527085,97.184,97.108,28.64]
[1770145277120,9.26895703,97.15,97.119,4.49999999]
[1770145277321,9.26895703,97.14,97.119,4.49999999]
[1770145277505,9.26895703,97.14,97.113,10.29718357]
[1770145277707,9.26895703,97.14,97.118,10.29671197]
[1770145277925,9.26895703,97.15,97.122,10.2962273]
[1770145278222,9.26895703,97.15,97.11,9.26895703]
[1770145278223,9.26895703,97.13,97.108,28.64]
[1770145278423,9.26895703,97.13,97.1,10.29863696]
[1770145278631,9.26895703,97.13,97.1,10.29864749]
[1770145279005,9.26895703,97.13,97.079,14.10670622]
[1770145279006,9.26895703,97.11,97.079,14.10670622]
[1770145279204,4.27527085,97.144,97.079,11.91909948]
[1770145279417,9.26895703,97.09,97.079,11.91909948]
[1770145280038,51.34148396,97.177,97.079,11.91909948]
[1770145280039,9.26895703,97.12,97.081,4.49999999]
[1770145280322,9.26895703,97.14,97.091,4.49999999]
[1770145280532,9.26895703,97.16,97.121,4.49999999]
[1770145281024,9.26895703,97.13,97.104,4.49999999]
[1770145281229,9.26895703,97.12,97.09,4.49999999]
[1770145281528,9.26895703,97.16,97.09,4.49999999]
[1770145281529,9.26895703,97.13,97.09,4.49999999]
[1770145281708,9.26895703,97.12,97.087,4.49999999]
[1770145281916,4.27527085,97.145,97.079,11.91909948]
[1770145281917,9.26895703,97.1,97.079,11.91909948]
[1770145282724,5.36086188,97.144,97.079,11.91909948]
[1770145282725,9.26895703,97.09,97.079,11.91909948]
[1770145282910,9.26895703,97.09,97.079,2.60868833]
[1770145283112,9.26895703,97.09,97.06,4.49999999]
[1770145283313,9.26895703,97.07,97.047,4.49999999]
[1770145283513,9.26895703,97.07,97.051,4.49999999]
[1770145283721,9.26895703,97.08,97.051,4.49999999]
[1770145284026,4.27527085,97.104,97.051,4.49999999]
[1770145284027,9.26895703,97.07,97.051,4.49999999]
[1770145284220,5.36086188,97.13,97.035,4.49999999]
[1770145284221,9.26895703,97.06,97.035,4.49999999]
[1770145284408,4.27527085,97.127,97.021,61.20181392]
[1770145284409,4.33787785,97.116,97.051,4.48068722]
[1770145284613,9.26895703,97.12,97.071,4.48068722]
[1770145284808,9.26895703,97.11,97.058,4.48068722]
[1770145285025,9.26895703,97.11,97.052,28.64]
[1770145285026,4.33787785,97.109,97.061,4.48068722]
[1770145285213,9.26895703,97.1,97.061,4.48068722]
[1770145285410,4.33787785,97.109,97.061,4.48068722]
[1770145285926,5.36086188,97.15,97.059,36.06054049]
[1770145285927,9.26895703,97.12,97.071,4.48068722]
[1770145286131,9.26895703,97.11,97.071,4.48068722]
[1770145286434,9.26895703,97.12,97.081,4.48068722]
[1770145286613,9.26895703,97.13,97.081,4.48068722]
[1770145286808,9.26895703,97.12,97.081,4.48068722]
[1770145287007,9.26895703,97.1,97.075,10.30123775]
[1770145287228,9.26895703,97.11,97.072,4.48068722]
[1770145287642,9.26895703,97.1,97.072,4.48068722]
[1770145287933,9.26895703,97.1,97.023,41.22730257]
[1770145287934,9.26895703,97.08,97.057,4.48068722]
[1770145288156,9.26895703,97.09,97.057,4.48068722]
[1770145288432,6.66654494,97.211,97.077,10.30110118]
[1770145288433,9.26895703,97.11,97.077,10.30110118]
[1770145288736,9.26895703,97.09,97.049,4.48068722]
[1770145288922,4.33787785,97.099,97.036,4.48068722]
[1770145289120,9.26895703,97.06,97.022,4.48068722]
[1770145289321,9.26895703,97.06,97.031,4.48068722]
[1770145289528,9.26895703,97.06,96.987,4.27527085]
[1770145289529,9.26895703,97.05,97.022,4.48068722]
[1770145289817,9.26895703,97.05,96.969,41.24988034]
[1770145289818,9.26895703,97.03,97.009,4.48068722]
[1770145290026,9.26895703,97.04,97.009,4.48068722]
[1770145290333,14.62981891,97.09,97.022,10.30694069]
[1770145290334,9.26895703,97.06,97.022,10.30694069]
[1770145291543,4.33787785,97.064,97.022,10.30694069]
[1770145291544,9.26895703,97.05,97.022,10.30694069]
[1770145291911,9.26895703,97.06,97.023,4.48068722]
[1770145292145,9.26895703,97.07,97.031,4.48068722]
[1770145292448,9.26895703,97.16,97.021,17.12132613]
[1770145292449,9.26895703,97.05,97.021,6.81437462]
[1770145292948,9.26895703,97.06,97.022,4.48068722]
[1770145293232,9.26895703,97.07,97.022,4.48068722]
[1770145293533,4.33787785,97.073,97.022,4.48068722]
[1770145293744,9.26895703,97.06,97.022,4.48068722]
[1770145294118,9.26895703,97.07,97.022,4.48068722]
[1770145294317,4.27527085,97.085,97.02,9.26895703]
[1770145294318,9.26895703,97.06,97.02,9.26895703]
[1770145294535,9.26895703,97.06,97.016,4.48068722]
[1770145294713,9.26895703,97.04,97.016,4.48068722]
[1770145295138,9.26895703,97.03,97.015,6.71101604]
[1770145295731,9.26895703,97.09,97.015,6.71101604]
[1770145295732,4.33787785,97.086,97.016,4.48068722]
[1770145295915,9.26895703,97.07,97.021,4.48068722]
[1770145296417,9.26895703,97.07,97.03,13.74964425]
[1770145297238,9.26895703,97.05,97.016,4.48068722]
[1770145297735,9.26895703,97.06,97.016,4.48068722]
[1770145298122,9.26895703,97.03,97.015,6.71101604]
[1770145299043,9.26895703,97.04,97.015,6.71101604]
[1770145299419,9.26895703,97.03,97.015,6.71101604]
[1770145301323,4.29449907,97.029,97.015,4.1217658]
[1770145301543,4.25155407,97.055,97.015,1.73655807]
[1770145301743,9.26895703,97.05,97.016,4.48068722]
[1770145302122,9.26895703,97.04,97.016,4.48068722]
[1770145302531,9.26895703,97.05,97.016,4.48068722]
[1770145302724,9.26895703,97.04,97.016,4.48068722]
[1770145302947,9.26895703,97.05,97.016,4.48068722]
[1770145303617,9.26895703,97.04,97.016,4.48068722]
[1770145304345,9.26895703,97.05,97.016,4.48068722]
[1770145304526,14.62981891,97.09,97.015,1.73655807]
[1770145304527,9.26895703,97.03,97.015,1.73655807]
[1770145305745,4.25155407,97.029,97.015,1.69361307]
[1770145306327,4.25155407,97.029,96.98,4.48068722]
[1770145306652,4.25155407,97.029,96.95,0.1]
[1770145306653,9.26895703,96.99,96.961,4.48068722]
[1770145306849,9.26895703,96.98,96.961,4.48068722]
[1770145307143,9.26895703,97.02,96.951,6.73130331]
[1770145307144,9.26895703,97.02,96.971,4.48068722]
[1770145307553,9.26895703,97.01,96.971,4.48068722]
[1770145308145,9.26895703,97.0,96.971,4.48068722]
[1770145308732,9.26895703,97.01,96.971,4.48068722]
[1770145309353,9.26895703,97.0,96.971,4.48068722]
[1770145309559,9.26895703,97.01,96.971,4.48068722]
[1770145309736,28.64,97.066,96.951,6.73130331]
[1770145309737,9.26895703,96.98,96.953,4.48068722]
[1770145310136,9.26895703,96.99,96.953,4.48068722]
[1770145310463,9.26895703,96.98,96.953,4.48068722]
[1770145310659,9.26895703,97.0,96.961,4.38118259]
[1770145310953,9.26895703,96.99,96.961,4.38118259]
[1770145311328,4.27527085,97.015,96.961,4.38118259]
[1770145311529,51.42877426,97.089,96.951,6.73130331]
[1770145311530,9.26895703,97.01,96.963,4.38118259]
[1770145311727,4.27527085,97.025,96.963,4.38118259]
[1770145311728,9.26895703,96.99,96.963,4.38118259]
[1770145311942,9.26895703,97.01,96.963,4.38118259]
[1770145312336,9.26895703,97.0,96.963,4.38118259]
[1770145312543,9.26895703,96.99,96.963,4.38118259]
[1770145313452,13.34472696,97.01,96.963,4.38118259]
[1770145313642,9.26895703,97.0,96.963,4.38118259]
[1770145314444,9.26895703,96.98,96.951,10.89333302]
[1770145314644,9.26895703,96.98,96.952,4.16202971]
[1770145315239,4.27527085,97.012,96.951,6.73130331]
[1770145315240,9.26895703,96.96,96.951,6.73130331]
[1770145315454,9.26895703,96.96,96.916,4.16202971]
[1770145315647,9.26895703,96.96,96.87,0.1]
[1770145315648,9.26895703,96.93,96.901,6.73234432]
[1770145315952,5.36086188,96.944,96.874,4.16202971]
[1770145316139,3.67901494,96.944,96.874,4.16202971]
[1770145316537,9.26895703,96.92,96.881,4.16202971]
[1770145316954,9.26895703,96.93,96.886,4.16202971]
[1770145317158,3.67901494,96.939,96.886,4.16202971]
[1770145317354,9.26895703,96.93,96.886,4.16202971]
[1770145317585,4.27527085,96.963,96.87,0.1]
[1770145317586,9.26895703,96.91,96.871,4.16202971]
[1770145317743,3.67901494,96.924,96.871,4.16202971]
[1770145318052,9.26895703,96.92,96.871,4.16202971]
[1770145318253,9.26895703,96.92,96.872,4.16202971]
[1770145318456,9.26895703,96.9,96.872,4.16202971]
[1770145318754,9.26895703,96.89,96.87,0.1]
[1770145319258,9.26895703,96.88,96.862,6.71737744]
[1770145319441,9.26895703,96.89,96.862,6.71737744]
[1770145319641,3.64222479,96.902,96.862,6.71737744]
[1770145320152,28.66,96.94,96.862,6.71737744]
[1770145320153,3.64222479,96.869,96.862,6.68058729]
[1770145320355,3.64222479,96.869,96.791,5.39682704]
[1770145320356,56.81434015,96.938,96.83,4.16202971]
[1770145320536,9.26895703,96.86,96.811,4.16202971]
[1770145320737,3.40780254,96.882,96.811,4.16202971]
[1770145320936,3.40780254,96.882,96.794,10.33114879]
[1770145320937,3.40780254,96.915,96.831,4.16202971]
[1770145321238,67.34073642,96.933,96.794,10.33114879]
[1770145321239,3.40780254,96.899,96.841,4.16202971]
[1770145321443,3.40780254,96.886,96.828,4.16202971]
[1770145321647,9.26895703,96.86,96.828,4.16202971]
[1770145321856,3.40780254,96.886,96.841,4.16202971]
[1770145322155,9.26895703,96.89,96.841,4.16202971]
[1770145322359,67.34073642,96.918,96.861,4.16202971]
[1770145322656,67.34073642,96.918,96.881,4.16202971]
[1770145322860,9.26895703,96.91,96.881,4.16202971]
[1770145323059,67.34073642,96.918,96.881,4.16202971]
[1770145323446,65.16476934,96.918,96.901,4.16202971]
[1770145324057,65.16476934,96.918,96.841,41.3044134]
[1770145324058,4.11617671,96.964,96.911,4.16202971]
[1770145324247,4.11617671,96.964,96.93,9.26895703]
[1770145324447,4.11617671,96.964,96.882,28.68]
[1770145324448,4.11617671,96.964,96.883,6.53536679]
[1770145324664,34.43750092,97.049,96.883,6.53536679]
[1770145324665,4.5,96.939,96.883,6.53536679]
[1770145324861,28.68,97.018,96.93,9.26895703]
[1770145324862,4.5,96.969,96.93,9.26895703]
[1770145325163,9.26895703,96.96,96.92,9.26895703]
[1770145325344,4.5,96.969,96.92,9.26895703]
[1770145325663,9.26895703,96.95,96.91,9.26895703]
[1770145325866,4.5,97.004,96.92,9.26895703]
[1770145326053,4.5,97.004,96.91,9.26895703]
[1770145326054,9.26895703,96.95,96.91,9.26895703]
[1770145326356,4.5,96.949,96.91,9.26895703]
[1770145326559,4.5,96.949,96.889,6.63517849]
[1770145326560,4.5,96.929,96.889,6.63517849]
[1770145326765,4.27527085,96.963,96.889,6.63517849]
[1770145326766,4.5,96.962,96.889,6.63517849]
[1770145326942,4.5,97.031,96.91,10.31879787]
[1770145327138,34.43750092,97.032,96.91,10.31879787]
[1770145327139,13.76895703,96.97,96.92,9.26895703]
[1770145327344,9.26895703,96.96,96.911,6.61080786]
[1770145327556,9.26895703,97.02,96.911,6.61080786]